[Event "Slovakia Open Piestany-A 2022"]
[Site "Piestany"]
[Date "2022.07.12"]
[Round "1.23"]
[White "Compel, Daniel"]
[Black "Farkas, Gabor"]
[Result "1/2-1/2"]
[ECO "A37"]
[WhiteElo "2098"]
[BlackElo "2335"]
[Annotator "ChessBase"]
[PlyCount "87"]
[EventDate "2022.07.12"]
[EventType "swiss"]
[EventCountry "SVK"]
[SourceTitle "playchess.com"]
[Source "ChessBase"]
[SourceQuality "1"]
[TimeControl "40/5400+30:1800+30"]

1. Nf3 {[%emt 0:00:08]} c5 {[%emt 0:01:05]} 2. c4 {[%emt 0:00:08]} Nc6 {[%emt 0:00:39]} 3. Nc3 {[%emt 0:00:06]} e5 {[%emt 0:03:43]} 4. g3 {[%emt 0:02:30]} d6 {[%emt 0:02:06]} 5. Bg2 {[%emt 0:00:06]} g6 {[%emt 0:02:28]} 6. d3 {[%emt 0:00:14]} Bg7 {[%emt 0:01:32]} 7. O-O {[%emt 0:00:29]} Nge7 {[%emt 0:00:41]} 8. a3 {[%emt 0:02:52]} O-O {[%emt 0:02:08]} 9. Rb1 {[%emt 0:01:44]} a5 {[%emt 0:08:21]} 10. Nd5 {[%emt 0:03:31]} f5 {[%emt 0:14:10]} 11. b3 {[%emt 0:07:37]} h6 {[%emt 0:05:18]} 12. Nd2 {[%emt 0:01:45]} Be6 {[%emt 0:06:21]} 13. Bb2 {[%emt 0:00:55]} Kh7 {[%emt 0:05:38]} 14. Bc3 {[%emt 0:01:07]} Bg8 {[%emt 0:04:44]} 15. Nxe7 {[%emt 0:02:25]} Qxe7 {[%emt 0:03:29]} 16. b4 {[%emt 0:00:52]} axb4 {[%emt 0:04:02]} 17. axb4 {[%emt 0:00:20]} Ra3 {[%emt 0:05:33]} 18. Bb2 {[%emt 0:04:26]} Ra7 {[%emt 0:00:29]} 19. bxc5 {[%emt 0:01:08]} dxc5 {[%emt 0:00:03]} 20. Ra1 {[%emt 0:03:00]} Rfa8 {[%emt 0:01:46]} 21. Qb3 {[%emt 0:05:27]} Nb4 {[%emt 0:01:04]} 22. Rxa7 {[%emt 0:07:05]} Rxa7 {[%emt 0:00:12]} 23. Ra1 {[%emt 0:01:02]} Rxa1+ {[%emt 0:00:24]} 24. Bxa1 {[%emt 0:00:04]} b5 {[%emt 0:00:08]} 25. Qc3 {[%emt 0:04:46]} bxc4 {[%emt 0:04:04]} 26. Nxc4 {[%emt 0:00:39]} e4 {[%emt 0:03:54]} 27. Qxg7+ {[%emt 0:00:13]} Qxg7 {[%emt 0:00:05]} 28. Bxg7 {[%emt 0:00:09]} Bxc4 {[%emt 0:00:41]} 29. Bf8 {[%emt 0:01:58]} exd3 {[%emt 0:05:56]} 30. exd3 {[%emt 0:00:11]} Nxd3 {[%emt 0:00:16]} 31. Bf1 {[%emt 0:00:09]} Ne5 {[%emt 0:00:27]} 32. Bxc4 {[%emt 0:00:27]} Nxc4 {[%emt 0:00:07]} 33. Bxc5 {[%emt 0:00:04]} Ne5 {[%emt 0:00:15]} 34. Kg2 {[%emt 0:00:41]} g5 {[%emt 0:00:06]} 35. Bd4 {[%emt 0:01:00]} Nd3 {[%emt 0:00:37]} 36. Bc3 {[%emt 0:00:51]} Kg6 {[%emt 0:00:09]} 37. h3 {[%emt 0:00:27]} Nc5 {[%emt 0:00:18]} 38. Bd2 {[%emt 0:01:31]} Ne4 {[%emt 0:00:49]} 39. Bc1 {[%emt 0:00:25]} h5 {[%emt 0:00:16]} 40. g4 {[%emt 0:04:49]} fxg4 {[%emt 0:00:58]} 41. hxg4 {[%emt 0:30:08]} hxg4 {[%emt 0:30:08]} 42. f3 {[%emt 0:00:23]} gxf3+ {[%emt 0:00:04]} 43. Kxf3 {[%emt 0:00:06]} g4+ {[%emt 0:00:06]} 44. Kxg4 {[%emt 0:00:05]} 1/2-1/2

[Event "Slovakia Open Piestany-A 2022"]
[Site "Piestany"]
[Date "2022.07.11"]
[Round "1.24"]
[White "Dixit, Nikhil"]
[Black "Balint, Peter"]
[Result "1/2-1/2"]
[ECO "A00"]
[WhiteElo "2325"]
[BlackElo "2051"]
[Annotator "ChessBase"]
[PlyCount "89"]
[EventDate "2022.07.12"]
[EventType "swiss"]
[EventCountry "SVK"]
[SourceTitle "playchess.com"]
[Source "ChessBase"]
[SourceQuality "1"]
[TimeControl "40/5400+30:1800+30"]

1. e4 c5 2. Nf3 e6 3. d4 cxd4 4. Nxd4 a6 5. Nc3 b5 6. a3 Bb7 7. Bd3 Bc5 8. Nb3 Be7 9. O-O Nc6 10. Qe2 Ne5 11. Be3 Nf6 12. f4 Nxd3 13. cxd3 d6 14. Nd4 O-O 15. Kh1 Rc8 16. Rf3 Re8 17. Raf1 Bf8 18. Rg3 Nd7 19. f5 e5 20. Nc2 d5 21. Nxd5 Bxd5 22. exd5 Nf6 23. Bg5 e4 24. Ne3 Bd6 25. Rh3 Be7 26. Bxf6 Bxf6 27. Ng4 exd3 28. Qxd3 Rc4 29. Nxf6+ Qxf6 30. Re3 Rd8 31. Rd1 h6 32. h3 Qd6 33. Qe2 Kf8 34. Re5 Rc6 35. Qe4 Rc4 36. Qe3 Rc2 37. Re1 Rcc8 38. b4 Kg8 39. Rd1 Kf8 40. Re1 Kg8 41. Rf1 Qf6 42. Qe4 Rc4 43. Qe3 Rcc8 44. Qe4 Rc4 45. Qe3 1/2-1/2

[Event "Slovakia Open Piestany-A 2022"]
[Site "Piestany"]
[Date "2022.07.11"]
[Round "1.25"]
[White "Sevcikova, Lucia"]
[Black "Bhambure, Shantanu"]
[Result "0-1"]
[ECO "A00"]
[WhiteElo "2036"]
[BlackElo "2320"]
[Annotator "ChessBase"]
[PlyCount "155"]
[EventDate "2022.07.12"]
[EventType "swiss"]
[EventCountry "SVK"]
[SourceTitle "playchess.com"]
[Source "ChessBase"]
[SourceQuality "1"]
[TimeControl "40/5400+30:1800+30"]

1. d4 Nf6 2. c4 e6 3. Nc3 Bb4 4. e3 b6 5. Bd3 Bb7 6. Nf3 O-O 7. O-O c5 8. a3 Bxc3 9. bxc3 Ne4 10. Qc2 f5 11. Nd2 Nxd2 12. Bxd2 Nc6 13. f3 Qf6 14. Be1 d6 15. Bg3 e5 16. d5 Na5 17. a4 g5 18. Be1 Ba6 19. Qe2 Rae8 20. Bd2 Qg6 21. e4 f4 22. Rab1 h5 23. Kh1 Kh8 24. Rg1 g4 25. Rbf1 Bc8 26. Qd1 h4 27. h3 gxh3 28. gxh3 Qh5 29. Kh2 Rg8 30. Rg4 Qh7 31. Be1 Bxg4 32. hxg4 h3 33. Rh1 Kg7 34. Kg1 Rh8 35. Rh2 Kf7 36. Bf1 Ke7 37. Qe2 Qh6 38. Qb2 Kd8 39. Qc2 Reg8 40. Qe2 Qg5 41. Qb2 Kc7 42. Qe2 Qg7 43. Kh1 Rh6 44. Qa2 Rg6 45. Qf2 Qh7 46. Qc2 Nb7 47. Be2 Nd8 48. Qb1 Qe7 49. Qc2 Nf7 50. Bd1 Ng5 51. Be2 a6 52. Qa2 Qh7 53. Qb1 Qf7 54. Qd3 Rf6 55. Bd1 Qd7 56. Qe2 Rb8 57. Bh4 Rg6 58. Bxg5 Rxg5 59. Rxh3 Rg7 60. Qa2 Rh7 61. Rxh7 Qxh7+ 62. Kg1 Rh8 63. Qg2 Qh4 64. Kf1 Qh1+ 65. Qg1 Rh2 66. Qxh1 Rxh1+ 67. Ke2 Kd8 68. Kd2 Ke7 69. Be2 Kf6 70. Bd1 Kg5 71. Be2 Kh4 72. Bd1 Kg3 73. Ke2 Rh2+ 74. Kd3 Kf2 75. Kd2 Kf1+ 76. Kc1 Ke1 77. Bc2 Rd2 78. Bb3 0-1

[Event "Slovakia Open Piestany-A 2022"]
[Site "Piestany"]
[Date "2022.07.12"]
[Round "1.26"]
[White "Pniaczek, Marek"]
[Black "Brhel, Jan"]
[Result "0-1"]
[ECO "C78"]
[WhiteElo "2312"]
[BlackElo "2018"]
[Annotator "ChessBase"]
[PlyCount "59"]
[EventDate "2022.07.12"]
[EventType "swiss"]
[EventCountry "SVK"]
[SourceTitle "playchess.com"]
[Source "ChessBase"]
[SourceQuality "1"]
[TimeControl "40/5400+30:1800+30"]

1. e4 {[%emt 0:00:05]} e5 {[%emt 0:00:23]} 2. Nf3 {[%emt 0:00:05]} Nc6 {[%emt 0:00:08]} 3. Bb5 {[%emt 0:00:24]} a6 {[%emt 0:00:09]} 4. Ba4 {[%emt 0:00:05]} Nf6 {[%emt 0:00:07]} 5. O-O {[%emt 0:00:10]} b5 {[%emt 0:00:10]} 6. Bb3 {[%emt 0:00:12]} Bc5 {[%emt 0:00:09]} 7. a4 {[%emt 0:05:50]} Rb8 {[%emt 0:00:53]} 8. Re1 {[%emt 0:02:07]} d6 {[%emt 0:02:10]} 9. c3 {[%emt 0:00:23]} O-O {[%emt 0:00:36]} 10. d4 {[%emt 0:02:37]} Bb6 {[%emt 0:00:08]} 11. a5 {[%emt 0:10:56]} Ba7 {[%emt 0:00:07]} 12. h3 {[%emt 0:01:20]} exd4 {[%emt 0:01:07]} 13. cxd4 {[%emt 0:00:21]} h6 {[%emt 0:00:07]} 14. Be3 {[%emt 0:01:35]} Re8 {[%emt 0:03:09]} 15. Nbd2 {[%emt 0:01:09]} Nb4 {[%emt 0:02:18]} 16. d5 {[%emt 0:08:27]} Bxe3 {[%emt 0:00:29]} 17. Rxe3 {[%emt 0:00:06]} c5 {[%emt 0:00:12]} 18. Qb1 {[%emt 0:10:23]} Nh5 {[%emt 0:10:35]} 19. Nf1 {[%emt 0:03:47]} Qf6 {[%emt 0:03:47]} 20. Bd1 {[%emt 0:03:16]} Rb7 {[%emt 0:05:06]} 21. N3h2 {[%emt 0:04:02]} Nf4 {[%emt 0:03:05]} 22. Rf3 {[%emt 0:07:48]} Qg5 {[%emt 0:03:42]} 23. Rg3 {[%emt 0:04:14]} Qe5 {[%emt 0:02:10]} 24. Bf3 {[%emt 0:07:53]} Nbd3 {[%emt 0:09:13]} 25. b3 {[%emt 0:01:26]} f5 {[%emt 0:08:37]} 26. exf5 {[%emt 0:01:32]} Bxf5 {[%emt 0:04:48]} 27. Ne3 {[%emt 0:02:08]} Qd4 {[%emt 0:18:08]} 28. Qd1 {[%emt 0:04:37]} Rxe3 {[%emt 0:00:59]} 29. fxe3 {[%emt 0:02:09]} Qxe3+ {[%emt 0:00:09]} 30. Kf1 {[%emt 0:00:08]} 0-1

[Event "Slovakia Open Piestany-A 2022"]
[Site "Piestany"]
[Date "2022.07.11"]
[Round "1.27"]
[White "Walter, Ema"]
[Black "Turcan, Richard"]
[Result "0-1"]
[ECO "A00"]
[WhiteElo "2000"]
[BlackElo "2304"]
[Annotator "ChessBase"]
[PlyCount "70"]
[EventDate "2022.07.12"]
[EventType "swiss"]
[EventCountry "SVK"]
[SourceTitle "playchess.com"]
[Source "ChessBase"]
[SourceQuality "1"]
[TimeControl "40/5400+30:1800+30"]

1. e4 c5 2. Nf3 e6 3. c3 d5 4. exd5 exd5 5. Bb5+ Bd7 6. Qe2+ Qe7 7. O-O Qxe2 8. Bxe2 Nc6 9. Re1 O-O-O 10. d4 Nf6 11. Bg5 Re8 12. Bxf6 gxf6 13. dxc5 Bxc5 14. Nbd2 Bb6 15. Rad1 Bf5 16. Nb3 Be4 17. Kf1 Rhg8 18. g3 f5 19. Nfd4 f4 20. f3 Bg6 21. g4 f5 22. h3 fxg4 23. hxg4 h5 24. Bb5 hxg4 25. fxg4 Be4 26. Nxc6 bxc6 27. Bxc6 Re5 28. Nd4 Bc7 29. Rd2 Rxg4 30. Rh2 Rg8 31. Bb5 Reg5 32. Ba6+ Kb8 33. Ke2 f3+ 34. Nxf3 Bxf3+ 35. Kxf3 Bxh2 0-1

[Event "Slovakia Open Piestany-A 2022"]
[Site "Piestany"]
[Date "2022.07.12"]
[Round "1.28"]
[White "Straka, Jozef"]
[Black "Pennica, Andrea"]
[Result "1-0"]
[ECO "A77"]
[WhiteElo "2300"]
[BlackElo "1986"]
[Annotator "ChessBase"]
[PlyCount "105"]
[EventDate "2022.07.12"]
[EventType "swiss"]
[EventCountry "SVK"]
[SourceTitle "playchess.com"]
[Source "ChessBase"]
[SourceQuality "1"]
[TimeControl "40/5400+30:1800+30"]

1. d4 {[%emt 0:00:14]} Nf6 {[%emt 0:00:13]} 2. c4 {[%emt 0:00:05]} c5 {[%emt 0:00:14]} 3. d5 {[%emt 0:00:04]} e6 {[%emt 0:00:10]} 4. Nc3 {[%emt 0:00:06]} exd5 {[%emt 0:00:05]} 5. cxd5 {[%emt 0:00:05]} d6 {[%emt 0:00:03]} 6. Nf3 {[%emt 0:00:20]} g6 {[%emt 0:00:06]} 7. Nd2 {[%emt 0:00:26]} Bg7 {[%emt 0:00:42]} 8. e4 {[%emt 0:00:07]} O-O {[%emt 0:00:09]} 9. Be2 {[%emt 0:00:04]} Re8 {[%emt 0:00:13]} 10. O-O {[%emt 0:00:13]} a6 {[%emt 0:00:28]} 11. a4 {[%emt 0:00:07]} Nbd7 {[%emt 0:00:13]} 12. Re1 {[%emt 0:00:39]} Rb8 {[%emt 0:01:09]} 13. a5 {[%emt 0:10:34]} Ne5 {[%emt 0:14:36]} 14. h3 {[%emt 0:03:13]} g5 {[%emt 0:03:43]} 15. Nf1 {[%emt 0:02:38]} h6 {[%emt 0:13:38]} 16. Ng3 {[%emt 0:02:02]} Ng6 {[%emt 0:00:57]} 17. Ra3 {[%emt 0:06:07]} Re5 {[%emt 0:02:10]} 18. Bg4 {[%emt 0:21:18]} Nxg4 {[%emt 0:20:56]} 19. hxg4 {[%emt 0:00:04]} b5 {[%emt 0:02:38]} 20. axb6 {[%emt 0:00:57]} Rxb6 {[%emt 0:00:17]} 21. Nf5 {[%emt 0:01:46]} Bxf5 {[%emt 0:00:18]} 22. gxf5 {[%emt 0:00:17]} Nf8 {[%emt 0:01:37]} 23. Qe2 {[%emt 0:07:56]} Nh7 {[%emt 0:18:57]} 24. Rxa6 {[%emt 0:02:43]} Rb4 {[%emt 0:00:08]} 25. f3 {[%emt 0:12:14]} g4 {[%emt 0:01:21]} 26. fxg4 {[%emt 0:05:12]} Qh4 {[%emt 0:01:47]} 27. Ra8+ {[%emt 0:02:30]} Nf8 {[%emt 0:00:18]} 28. Qf2 {[%emt 0:09:11]} Qe7 {[%emt 0:03:31]} 29. Rf1 {[%emt 0:03:32]} Qb7 {[%emt 0:08:24]} 30. f6 {[%emt 0:02:20]} Bh8 {[%emt 0:00:10]} 31. Rxf8+ {[%emt 0:03:03]} Kxf8 {[%emt 0:00:14]} 32. Qf4 {[%emt 0:02:04]} Qc8 {[%emt 0:05:06]} 33. Qxh6+ {[%emt 0:01:08]} Kg8 {[%emt 0:00:30]} 34. Qf4 {[%emt 0:00:16]} Qd8 {[%emt 0:01:01]} 35. Rf3 {[%emt 0:01:47]} Qxf6 {[%emt 0:01:14]} 36. Qxf6 {[%emt 0:00:02]} Bxf6 {[%emt 0:00:04]} 37. Rxf6 {[%emt 0:00:09]} Rb6 {[%emt 0:00:09]} 38. g5 {[%emt 0:01:11]} Re7 {[%emt 0:00:52]} 39. g6 {[%emt 0:00:53]} fxg6 {[%emt 0:01:07]} 40. Rxg6+ {[%emt 0:00:03]} Kf7 {[%emt 0:00:29]} 41. Rh6 {[%emt 0:31:16]} Kg7 {[%emt 0:30:30]} 42. Re6 {[%emt 0:00:00]} Ra7 {[%emt 0:00:00]} 43. Kh2 {[%emt 0:00:00]} Kg8 {[%emt 0:00:00]} 44. e5 {[%emt 0:00:00]} Raa6 {[%emt 0:00:00]} 45. Rxd6 {[%emt 0:00:00]} Rxd6 {[%emt 0:00:00]} 46. exd6 {[%emt 0:00:00]} Rxd6 {[%emt 0:00:00]} 47. g4 {[%emt 0:00:00]} Kf7 {[%emt 0:00:00]} 48. Kg3 {[%emt 0:00:00]} Rf6 {[%emt 0:00:00]} 49. Ne4 {[%emt 0:00:00]} Rf1 {[%emt 0:00:00]} 50. Bd2 {[%emt 0:00:00]} Rd1 {[%emt 0:00:00]} 51. Kf4 {[%emt 0:00:00]} Ke7 {[%emt 0:00:00]} 52. Ke5 {[%emt 0:00:00]} Rf1 {[%emt 0:00:00]} 53. Nxc5 {[%emt 0:00:00]} 1-0

[Event "Slovakia Open Piestany-A 2022"]
[Site "Piestany"]
[Date "2022.07.11"]
[Round "1.29"]
[White "Sosovickova, Jana"]
[Black "Bochnicka, Vladimir"]
[Result "0-1"]
[ECO "A00"]
[WhiteElo "1958"]
[BlackElo "2295"]
[Annotator "ChessBase"]
[PlyCount "82"]
[EventDate "2022.07.12"]
[EventType "swiss"]
[EventCountry "SVK"]
[SourceTitle "playchess.com"]
[Source "ChessBase"]
[SourceQuality "1"]
[TimeControl "40/5400+30:1800+30"]

1. e4 c5 2. Nf3 Nc6 3. d4 cxd4 4. Nxd4 e5 5. Nb5 d6 6. c4 Be7 7. N1c3 a6 8. Na3 f5 9. exf5 Bxf5 10. Bd3 Be6 11. Nc2 Nf6 12. O-O O-O 13. Ne3 Qd7 14. Ned5 Rae8 15. b3 Bd8 16. Ba3 Kh8 17. Rc1 Nd4 18. Bb1 Nxd5 19. cxd5 Bg8 20. Be4 Rf4 21. g3 Rxe4 22. Nxe4 Bxd5 23. f3 Bb6 24. Kg2 Nf5 25. Rc3 Bd4 26. Rd3 Bc6 27. Re1 Bb5 28. Rd2 d5 29. Nf2 Rd8 30. Ng4 Qc7 31. Bb2 Bxb2 32. Rxb2 d4 33. Nxe5 Re8 34. Ng4 h5 35. Rxe8+ Bxe8 36. Qe1 Bc6 37. Qe5 Qf7 38. Qb8+ Kh7 39. Ne5 Ne3+ 40. Kg1 Qe6 41. Nxc6 Qxc6 0-1

[Event "Slovakia Open Piestany-A 2022"]
[Site "Piestany"]
[Date "2022.07.11"]
[Round "1.30"]
[White "Svana, Peter"]
[Black "Paluska, Karol"]
[Result "1-0"]
[ECO "A00"]
[WhiteElo "2280"]
[BlackElo "1957"]
[Annotator "ChessBase"]
[PlyCount "39"]
[EventDate "2022.07.12"]
[EventType "swiss"]
[EventCountry "SVK"]
[SourceTitle "playchess.com"]
[Source "ChessBase"]
[SourceQuality "1"]
[TimeControl "40/5400+30:1800+30"]

1. d4 Nf6 2. c4 e6 3. Nf3 b6 4. g3 Bb7 5. Bg2 c5 6. d5 d6 7. O-O Be7 8. dxe6 fxe6 9. Bh3 Bc8 10. Nc3 O-O 11. Ng5 Nc6 12. Bxe6+ Kh8 13. Nf7+ Rxf7 14. Bxf7 Bh3 15. Re1 Ng4 16. Bd5 Nd4 17. e3 Nf5 18. Ne4 Ne5 19. f3 h5 20. Nf2 1-0

[Event "Slovakia Open Piestany-A 2022"]
[Site "Piestany"]
[Date "2022.07.12"]
[Round "1.31"]
[White "Mizicka, Matus"]
[Black "Savitha Shri B"]
[Result "0-1"]
[ECO "B22"]
[WhiteElo "1915"]
[BlackElo "2278"]
[Annotator "ChessBase"]
[PlyCount "104"]
[EventDate "2022.07.12"]
[EventType "swiss"]
[EventCountry "SVK"]
[SourceTitle "playchess.com"]
[Source "ChessBase"]
[SourceQuality "1"]
[TimeControl "40/5400+30:1800+30"]

1. e4 {[%emt 0:00:04]} c5 {[%emt 0:00:20]} 2. Nf3 {[%emt 0:00:08]} e6 {[%emt 0:00:07]} 3. c3 {[%emt 0:00:48]} Nf6 {[%emt 0:01:08]} 4. e5 {[%emt 0:00:42]} Nd5 {[%emt 0:00:07]} 5. d4 {[%emt 0:01:19]} cxd4 {[%emt 0:01:19]} 6. cxd4 {[%emt 0:00:06]} Nc6 {[%emt 0:01:17]} 7. Be2 {[%emt 0:01:49]} d6 {[%emt 0:01:45]} 8. O-O {[%emt 0:01:11]} Qc7 {[%emt 0:01:06]} 9. Re1 {[%emt 0:00:38]} Bd7 {[%emt 0:03:14]} 10. Na3 {[%emt 0:09:07]} dxe5 {[%emt 0:05:36]} 11. Nb5 {[%emt 0:00:06]} Qb6 {[%emt 0:00:54]} 12. dxe5 {[%emt 0:13:29]} a6 {[%emt 0:05:45]} 13. Nd6+ {[%emt 0:08:37]} Bxd6 {[%emt 0:00:12]} 14. exd6 {[%emt 0:00:05]} Qc5 {[%emt 0:06:54]} 15. Bd3 {[%emt 0:14:32]} Qxd6 {[%emt 0:03:13]} 16. Be4 {[%emt 0:00:18]} Nce7 {[%emt 0:09:10]} 17. Bg5 {[%emt 0:12:10]} Bc6 {[%emt 0:04:14]} 18. Qd4 {[%emt 0:03:27]} f6 {[%emt 0:02:49]} 19. Bh4 {[%emt 0:00:51]} e5 {[%emt 0:07:53]} 20. Bg3 {[%emt 0:00:28]} Qb4 {[%emt 0:02:35]} 21. Bxe5 {[%emt 0:13:26]} fxe5 {[%emt 0:01:27]} 22. Qxe5 {[%emt 0:00:06]} O-O-O {[%emt 0:01:06]} 23. Ng5 {[%emt 0:00:34]} Nf6 {[%emt 0:24:27]} 24. a3 {[%emt 0:11:09]} Qd4 {[%emt 0:00:30]} 25. Qxe7 {[%emt 0:02:01]} Nxe4 {[%emt 0:00:31]} 26. Rxe4 {[%emt 0:05:13]} Bxe4 {[%emt 0:00:27]} 27. Qxe4 {[%emt 0:00:10]} Qd1+ {[%emt 0:06:29]} 28. Qe1 {[%emt 0:00:11]} Qxe1+ {[%emt 0:00:24]} 29. Rxe1 {[%emt 0:00:05]} Rhe8 {[%emt 0:01:00]} 30. Rc1+ {[%emt 0:00:38]} Kb8 {[%emt 0:00:01]} 31. g3 {[%emt 0:01:59]} h6 {[%emt 0:01:41]} 32. Nh3 {[%emt 0:00:05]} Rd2 {[%emt 0:00:13]} 33. Rb1 {[%emt 0:00:32]} Ree2 {[%emt 0:00:44]} 34. b4 {[%emt 0:00:33]} g5 {[%emt 0:01:19]} 35. g4 {[%emt 0:00:43]} Re4 {[%emt 0:00:12]} 36. Rb3 {[%emt 0:00:37]} Rxg4+ {[%emt 0:00:12]} 37. Kf1 {[%emt 0:00:11]} Rgd4 {[%emt 0:00:18]} 38. Re3 {[%emt 0:00:33]} Ka7 {[%emt 0:00:58]} 39. Re6 {[%emt 0:00:34]} Rh4 {[%emt 0:00:27]} 40. Kg2 {[%emt 0:00:25]} Rd3 {[%emt 0:00:32]} 41. Re3 {[%emt 0:30:47]} Rhd4 {[%emt 0:30:59]} 42. Ng1 {[%emt 0:00:00]} Rg4+ {[%emt 0:00:00]} 43. Rg3 {[%emt 0:00:00]} Rgxg3+ {[%emt 0:00:00]} 44. hxg3 {[%emt 0:00:00]} g4 {[%emt 0:00:00]} 45. Ne2 {[%emt 0:00:00]} Rxa3 {[%emt 0:00:00]} 46. Nd4 {[%emt 0:00:00]} Ra4 {[%emt 0:00:00]} 47. Nf5 {[%emt 0:00:00]} Rxb4 {[%emt 0:00:00]} 48. Nxh6 {[%emt 0:00:00]} a5 {[%emt 0:00:00]} 49. f4 {[%emt 0:00:00]} gxf3+ {[%emt 0:00:00]} 50. Kxf3 {[%emt 0:00:00]} a4 {[%emt 0:00:00]} 51. Nf5 {[%emt 0:00:00]} a3 {[%emt 0:00:00]} 52. Ne3 {[%emt 0:00:00]} Rb3 {[%emt 0:00:00]} 0-1

[Event "Slovakia Open Piestany-A 2022"]
[Site "Piestany"]
[Date "2022.07.12"]
[Round "1.32"]
[White "Hrbek, Stepan"]
[Black "Saravanan Durga"]
[Result "1-0"]
[ECO "E52"]
[WhiteElo "2272"]
[BlackElo "1908"]
[Annotator "ChessBase"]
[PlyCount "59"]
[EventDate "2022.07.12"]
[EventType "swiss"]
[EventCountry "SVK"]
[SourceTitle "playchess.com"]
[Source "ChessBase"]
[SourceQuality "1"]
[TimeControl "40/5400+30:1800+30"]

1. d4 {[%emt 0:00:55]} Nf6 {[%emt 0:00:11]} 2. c4 {[%emt 0:00:15]} e6 {[%emt 0:00:17]} 3. Nc3 {[%emt 0:00:34]} Bb4 {[%emt 0:00:07]} 4. e3 {[%emt 0:00:36]} O-O {[%emt 0:00:31]} 5. Bd2 {[%emt 0:00:06]} d6 {[%emt 0:01:31]} 6. Nf3 {[%emt 0:00:37]} d5 {[%emt 0:00:30]} 7. cxd5 {[%emt 0:00:00]} b6 {[%emt 0:03:07]} 8. Be2 {[%emt 0:00:00]} exd5 {[%emt 0:00:06]} 9. Bd3 {[%emt 0:00:24]} Bb7 {[%emt 0:00:57]} 10. O-O {[%emt 0:00:11]} Nbd7 {[%emt 0:04:02]} 11. Qc2 {[%emt 0:00:23]} Be7 {[%emt 0:10:54]} 12. Ne5 {[%emt 0:01:32]} c5 {[%emt 0:03:43]} 13. f4 {[%emt 0:07:21]} cxd4 {[%emt 0:12:53]} 14. exd4 {[%emt 0:00:46]} a6 {[%emt 0:19:25]} 15. Bf5 {[%emt 0:28:56]} h6 {[%emt 0:36:22]} 16. Qd3 {[%emt 0:06:03]} b5 {[%emt 0:00:33]} 17. g4 {[%emt 0:17:59]} Nxe5 {[%emt 0:00:39]} 18. fxe5 {[%emt 0:00:12]} Ne8 {[%emt 0:00:22]} 19. e6 {[%emt 0:07:13]} fxe6 {[%emt 0:00:20]} 20. Bxe6+ {[%emt 0:00:28]} Kh8 {[%emt 0:00:03]} 21. Rxf8+ {[%emt 0:14:51]} Bxf8 {[%emt 0:00:04]} 22. g5 {[%emt 0:00:06]} Nc7 {[%emt 0:02:05]} 23. Bf7 {[%emt 0:00:14]} Qd7 {[%emt 0:00:30]} 24. Rf1 {[%emt 0:01:10]} Qg4+ {[%emt 0:00:18]} 25. Qg3 {[%emt 0:02:12]} Qxg3+ {[%emt 0:02:11]} 26. hxg3 {[%emt 0:00:07]} hxg5 {[%emt 0:01:07]} 27. Bxg5 {[%emt 0:02:01]} Bd6 {[%emt 0:00:26]} 28. Kg2 {[%emt 0:00:19]} g6 {[%emt 0:00:13]} 29. Bf6+ {[%emt 0:00:06]} Kh7 {[%emt 0:00:24]} 30. Rh1# {[%emt 0:00:06]} 1-0